bitfinex/quotes_SOLUSD_20241210
["timestamp","ask_amount","ask_price","bid_price","bid_amount"]
[1733847863735,12.8662,210.41,210.15,43.15812179]
[1733847864077,12.8662,210.41,210.1,43.15812179]
[1733847864078,12.8662,210.41,210.21,43.15812179]
[1733847864214,12.8662,210.41,210.19,43.15812179]
[1733847864402,12.8662,210.41,210.21,43.15812179]
[1733847865023,12.8662,210.41,210.2,0.71330541]
[1733847865223,12.8662,210.41,210.17,312.0]
[1733847865224,15.0,210.36,210.13,43.15812179]
[1733847865433,18.747,210.39,210.13,43.15812179]
[1733847865731,35.0,210.37,210.13,43.15812179]
[1733847865944,2.8842962,210.34,210.13,43.15812179]
[1733847866232,37.8842962,210.34,210.09,43.87169264]
[1733847866800,15.0,210.31,210.07,43.15812179]
[1733847867000,20.0,210.24,210.08,0.71374254]
[1733847867201,20.0,210.24,210.11,43.15812179]
[1733847867409,20.0,210.24,210.13,43.15812179]
[1733847867616,20.0,210.24,210.15,43.15812179]
[1733847868019,12.8662,210.27,210.15,43.15812179]
[1733847868229,15.3789962,210.34,210.26,312.0]
[1733847868704,15.3789962,210.34,210.15,43.15812179]
[1733847868941,15.3789962,210.34,210.16,0.71346183]
[1733847869119,15.3789962,210.34,210.17,43.15812179]
[1733847869316,15.3789962,210.34,210.0,29.39]
[1733847869317,30.3789962,210.34,210.0,29.39]
[1733847869535,20.0,210.31,210.08,43.15812179]
[1733847870007,20.0,210.31,210.16,43.15812179]
[1733847870211,15.3789962,210.34,210.1,43.15812179]
[1733847870212,12.4947,210.34,210.22,43.15812179]
[1733847870511,14.4383315,210.36,210.18,43.15812179]
[1733847870715,14.4383315,210.36,210.22,43.15812179]
[1733847870917,14.4383315,210.36,210.07,30.0]
[1733847870918,14.4383315,210.36,210.14,43.15812179]
[1733847871118,14.4383315,210.36,210.15,0.7134583]
[1733847871726,14.4383315,210.36,210.2,43.15812179]
[1733847871941,14.4383315,210.36,210.16,43.15812179]
[1733847872109,14.4383315,210.36,210.05,53.8038]
[1733847872110,15.0,210.36,210.12,43.15812179]
[1733847872308,15.0,210.34,210.1,43.15812179]
[1733847872533,16.2417,210.33,210.1,43.15812179]
[1733847872737,16.2417,210.33,210.12,43.15812179]
[1733847872949,20.0,210.3,210.14,43.15812179]
[1733847873112,16.2417,210.33,210.16,43.15812179]
[1733847873313,12.4947,210.4,210.22,43.15812179]
[1733847873536,12.4947,210.4,210.23,0.71320538]
[1733847873740,2.91970479,210.37,210.23,0.71320538]
[1733847874248,2.91970479,210.37,210.2,43.15812179]
[1733847874547,2.91970479,210.37,210.21,0.71327674]
[1733847874719,22.91970479,210.37,210.21,0.71327674]
[1733847875119,20.0,210.36,210.15,0.71325566]
[1733847875433,20.0,210.34,210.11,43.15812179]
[1733847875638,16.2417,210.31,210.08,0.71357045]
[1733847875812,20.0,210.28,210.03,43.15812179]
[1733847876016,20.0,210.27,210.04,0.71380296]
[1733847876644,20.0,210.23,210.01,43.15812179]
[1733847876849,20.0,210.23,210.02,0.71391672]
[1733847877050,20.0,210.23,209.99,43.87203872]
[1733847877345,35.0,210.23,209.99,43.87203872]
[1733847877544,20.0,210.23,209.99,43.87203872]
[1733847877711,20.0,210.23,210.03,43.15812179]
[1733847878039,2.82618554,210.2,210.04,0.71381964]
[1733847878253,20.0,210.23,210.04,0.71375045]
[1733847878539,2.92591646,210.21,210.01,43.87196697]
[1733847878842,12.4947,210.2,209.97,43.15812179]
[1733847879077,12.4947,210.2,209.95,0.713912]
[1733847879078,20.0,210.17,209.95,0.713912]
[1733847879741,3.747,210.14,209.92,43.15812179]
[1733847879940,20.0,210.13,209.88,43.87232147]
[1733847880146,35.0,210.13,209.88,43.87232147]
[1733847880455,35.0,210.13,209.88,0.71419968]
[1733847880614,12.4947,210.08,209.87,43.15812179]
[1733847880818,20.0,210.05,209.85,0.71438797]
[1733847881145,20.0,210.05,209.85,43.87250976]
[1733847881323,20.0,210.05,209.85,355.87250976]
[1733847881524,20.0,210.05,209.85,355.15812179]
[1733847881828,20.0,210.05,209.89,43.15812179]
[1733847882144,3.747,210.14,209.98,43.15812179]
[1733847882344,5.67293874,210.14,210.0,43.15812179]
[1733847882661,5.67293874,210.14,209.96,43.15812179]
[1733847882861,5.67293874,210.14,209.97,0.71406077]
[1733847883165,5.67293874,210.14,209.98,43.15812179]
[1733847883334,5.67293874,210.14,209.87,15.0]
[1733847883335,5.67293874,210.14,209.94,43.15812179]
[1733847883542,5.67293874,210.14,209.95,0.71411786]
[1733847884337,20.0,210.11,209.95,0.71411786]
[1733847884752,20.0,210.11,209.94,43.15812179]
[1733847885058,20.0,210.11,209.98,312.0]
[1733847885244,20.0,210.11,209.9,43.15812179]
[1733847885448,20.0,210.11,209.96,43.15812179]
[1733847885629,20.0,210.11,209.97,0.71405289]
[1733847885827,7.21916575,210.18,210.05,43.15812179]
[1733847886024,7.21916575,210.18,210.09,43.15812179]
[1733847886226,7.21916575,210.18,210.13,43.15812179]
[1733847886427,7.21916575,210.18,210.1,0.71360683]
[1733847886654,7.21916575,210.19,210.1,0.71360683]
[1733847887262,7.21916575,210.19,210.11,43.15812179]
[1733847887554,7.21916575,210.19,210.09,43.15812179]
[1733847887762,7.21916575,210.19,210.1,0.71369111]
[1733847888439,7.21916575,210.19,210.13,43.15812179]
[1733847888658,7.21916575,210.19,210.14,0.713547]
[1733847889863,7.21916575,210.19,210.13,43.15812179]
[1733847890388,7.21916575,210.19,210.09,43.87169986]
[1733847890662,7.21916575,210.19,210.1,0.71378984]
[1733847891151,7.21916575,210.19,210.13,43.15812179]
[1733847891324,7.21916575,210.19,210.14,0.7135395]
[1733847891530,7.21916575,210.19,210.15,43.15812179]
[1733847891752,7.21916575,210.19,210.14,0.7135395]
[1733847892069,7.21916575,210.19,210.09,43.15812179]
[1733847892435,21.91410205,210.27,210.1,0.7137056]
[1733847892768,20.0,210.27,210.09,43.15812179]
[1733847893059,20.0,210.27,210.1,0.71365317]
[1733847894033,20.0,210.27,210.09,43.15812179]
[1733847894226,21.92694629,210.27,210.1,0.71374973]
[1733847894431,1.92694629,210.27,210.12,43.15812179]
[1733847894658,6.65822883,210.3,210.14,43.15812179]
[1733847894836,6.65822883,210.3,210.15,0.7134596]
[1733847895038,6.65822883,210.3,210.11,0.71345256]
[1733847895261,8.58517512,210.3,210.1,43.15812179]
[1733847895431,23.58517512,210.3,210.04,43.87183446]
[1733847895633,8.58517512,210.3,210.06,43.15812179]
[1733847895859,8.58517512,210.3,210.08,43.15812179]
[1733847896069,20.0,210.27,210.08,43.15812179]
[1733847896253,20.0,210.27,210.07,43.87188808]
[1733847896741,20.0,210.27,210.08,43.15812179]
[1733847897057,20.0,210.27,210.0,58.15812179]
[1733847897058,20.0,210.27,210.06,43.15812179]
[1733847897369,20.0,210.27,210.07,0.71375005]
[1733847897672,20.0,210.27,210.1,43.15812179]
[1733847897888,20.0,210.27,210.08,43.15812179]
[1733847898078,20.0,210.27,210.09,0.71371709]
[1733847898663,20.0,210.27,210.12,43.15812179]
[1733847898881,8.58517512,210.3,210.13,0.71353215]
[1733847899559,8.58517512,210.3,210.09,43.15812179]
[1733847899959,8.58517512,210.3,210.08,43.15812179]
[1733847900192,20.0,210.27,210.09,0.71372562]
[1733847900381,20.0,210.27,210.09,43.87184741]
[1733847900584,20.0,210.27,210.11,43.15812179]
[1733847900779,8.58517512,210.3,210.12,43.87169498]
[1733847901092,8.58517512,210.3,210.13,43.15812179]
[1733847901464,8.58517512,210.3,210.14,0.71352709]
[1733847901875,8.58517512,210.3,210.13,312.0]
[1733847902198,20.0,210.27,210.09,43.15812179]
[1733847902379,20.0,210.27,210.05,43.15812179]
[1733847902580,20.0,210.24,209.99,43.15812179]
[1733847902795,20.0,210.21,209.97,43.15812179]
[1733847903089,20.0,210.21,210.04,43.15812179]
[1733847903396,12.0599,210.25,210.06,43.15812179]
[1733847903557,12.0599,210.25,210.09,43.15812179]
[1733847903760,12.0599,210.25,210.05,43.15812179]
[1733847903972,13.97686927,210.25,210.07,43.15812179]
[1733847904197,2.81787734,210.24,210.08,0.71379119]
[1733847904705,20.0,210.22,210.05,43.15812179]
[1733847904893,20.0,210.22,210.07,43.15812179]
[1733847905495,20.0,210.22,210.03,43.15812179]
[1733847905992,20.0,210.22,210.01,43.87191694]
[1733847906293,20.0,210.2,209.97,43.15812179]
[1733847906471,20.0,210.19,209.97,43.15812179]
[1733847906672,3.747,210.16,209.95,43.15812179]
[1733847906892,3.747,210.16,209.97,43.15812179]
[1733847907378,2.92892028,210.12,209.97,43.15812179]
[1733847907761,2.92892028,210.12,209.88,1.92749718]
[1733847907762,20.0,210.08,209.91,43.87233075]
[1733847907968,20.0,210.08,209.87,43.15812179]
[1733847908383,20.0,210.07,209.85,43.15812179]
[1733847908700,20.0,210.06,209.83,43.15812179]
[1733847908861,20.0,210.05,209.83,43.15812179]
[1733847909060,20.0,210.05,209.82,43.15812179]
[1733847909302,12.0599,210.11,209.82,43.15812179]
[1733847909303,3.747,210.02,209.82,43.15812179]
[1733847909598,3.747,210.02,209.81,43.87274091]
[1733847909772,3.747,210.02,209.85,43.15812179]
[1733847910170,6.55929151,210.02,209.87,43.15812179]
[1733847910998,2.88122584,210.06,209.91,43.15812179]
[1733847911172,13.94929346,210.11,209.88,0.71439492]
[1733847911173,12.0599,210.11,209.97,43.15812179]
[1733847911366,7.21916575,210.12,210.01,43.15812179]
[1733847911567,7.21916575,210.12,210.02,0.71396935]
[1733847911996,7.21916575,210.12,209.97,43.15812179]
[1733847912181,7.21916575,210.12,209.93,43.15812179]
[1733847912387,7.21916575,210.12,209.89,43.15812179]
[1733847912589,7.21916575,210.12,209.91,43.15812179]
[1733847912590,20.0,210.09,209.91,43.15812179]
[1733847912795,7.21916575,210.12,209.95,43.15812179]
[1733847912968,7.21916575,210.12,209.89,43.15812179]
[1733847913278,30.0,210.08,209.79,43.15812179]
[1733847913476,13.2025,210.04,209.83,43.15812179]
[1733847913673,13.2025,210.04,209.87,43.15812179]
[1733847913868,13.2025,210.04,209.92,43.15812179]
[1733847914098,3.747,210.1,209.96,43.15812179]
[1733847914402,1.88733546,210.16,210.03,43.15812179]
[1733847914609,2.91042656,210.17,210.04,0.71385374]
[1733847914897,2.91042656,210.17,210.01,0.71389832]
[1733847915103,2.91042656,210.17,209.95,43.15812179]
[1733847915273,2.91042656,210.17,209.93,43.15812179]
[1733847915575,20.0,210.13,209.91,43.87230352]
[1733847915783,20.0,210.15,209.93,43.15812179]
[1733847915980,20.0,210.15,209.87,7.6012]
[1733847915981,20.0,210.15,209.95,43.15812179]
[1733847916186,2.91042656,210.17,209.97,43.15812179]
[1733847916380,2.91042656,210.17,210.01,43.15812179]
[1733847916582,2.91042656,210.17,210.02,0.71389906]
[1733847917303,3.747,210.18,210.05,43.15812179]
[1733847917598,13.2025,210.19,210.05,43.15812179]
[1733847917965,16.03618756,210.19,210.05,43.15812179]
[1733847918397,16.03618756,210.19,210.05,43.87193447]
[1733847918971,20.0,210.16,210.01,43.15812179]
[1733847919279,20.0,210.16,209.97,43.15812179]
[1733847919483,20.0,210.16,210.01,43.15812179]
[1733847919888,20.0,210.16,209.95,43.15812179]
[1733847920106,20.0,210.16,209.97,43.15812179]
[1733847921008,20.0,210.16,209.91,0.7140516]
[1733847921009,20.0,210.16,209.99,43.15812179]
[1733847921211,13.2025,210.19,210.05,43.15812179]
[1733847921512,14.65273396,210.23,210.09,43.15812179]
[1733847921694,14.65273396,210.23,210.11,43.15812179]
[1733847921895,14.65273396,210.23,210.12,0.71356194]
[1733847922097,14.65273396,210.23,210.17,43.15812179]
[1733847922300,14.65273396,210.23,210.19,43.15812179]
[1733847922504,14.65273396,210.23,210.2,0.71336501]
[1733847924224,7.21916575,210.24,210.22,43.15812179]
[1733847924421,84.28181697,210.35,210.26,15.0]
[1733847924600,84.28181697,210.35,210.27,43.15812179]
[1733847924799,84.28181697,210.35,210.27,86.31624358]
[1733847924997,84.28181697,210.35,210.27,398.31624358]
[1733847925293,51.82718167,210.3,210.29,50.12549]
[1733847925504,84.28181697,210.35,210.29,85.4526756]
[1733847925709,84.28181697,210.35,210.33,42.7263378]
[1733847925917,0.6143336,210.46,210.33,42.7263378]
[1733847926106,0.6143336,210.46,210.35,42.7263378]
[1733847926629,7.7467,210.45,210.29,42.7263378]
[1733847927011,7.7467,210.45,210.31,42.7263378]
[1733847927337,7.7467,210.45,210.29,42.7263378]
[1733847927628,0.6143336,210.46,210.39,42.7263378]
[1733847927836,0.6143336,210.46,210.43,42.7263378]
[1733847928053,0.6143336,210.46,210.45,42.7263378]
[1733847928210,12.0279,210.68,210.45,42.7263378]
[1733847928411,12.0279,210.68,210.48,42.7263378]
[1733847928715,12.0279,210.68,210.56,42.7263378]
[1733847928930,7.6193,210.7,210.58,42.7263378]
[1733847929114,57.29244684,210.86,210.51,14.39]
[1733847929115,12.0279,210.83,210.62,42.7263378]
[1733847929436,12.0279,210.79,210.64,42.7263378]
[1733847929740,12.0279,210.83,210.66,42.7263378]
[1733847929741,0.1007387,210.67,210.66,42.7263378]
[1733847930240,2.91967034,210.8,210.65,0.71174773]
[1733847930534,2.91967034,210.8,210.64,42.7263378]
[1733847930708,2.91967034,210.8,210.61,0.71170444]
[1733847930709,2.91967034,210.8,210.6,42.7263378]
[1733847930907,15.0,210.78,210.54,29.41815687]
[1733847931107,15.0,210.74,210.51,7.42347351]
[1733847931318,17.91967034,210.8,210.54,42.7263378]
[1733847931679,13.93435054,210.83,210.58,42.7263378]
[1733847931936,2.78649923,210.8,210.66,42.7263378]
[1733847932139,13.93435054,210.83,210.67,0.71172315]
[1733847932311,2.80445091,210.82,210.66,42.7263378]
[1733847932850,2.80445091,210.82,210.68,42.7263378]
[1733847933139,0.155,210.86,210.72,42.7263378]
[1733847933322,0.155,210.86,210.74,42.7263378]
[1733847933513,0.155,210.86,210.73,0.71150474]
[1733847933842,0.155,210.86,210.74,42.7263378]
[1733847934012,0.155,210.86,210.75,0.71139338]
[1733847934218,0.155,210.86,210.76,42.7263378]
[1733847934741,0.155,210.86,210.78,42.7263378]
[1733847934909,0.155,210.86,210.79,0.71127953]
[1733847935113,0.155,210.86,210.76,42.7263378]
[1733847935321,0.155,210.86,210.69,42.7263378]
[1733847935732,0.155,210.86,210.73,42.7263378]
[1733847935937,0.155,210.86,210.67,42.7263378]
[1733847936225,0.155,210.86,210.73,42.7263378]
[1733847936437,0.155,210.86,210.77,42.7263378]
[1733847936639,0.155,210.86,210.75,42.7263378]
[1733847937456,0.155,210.86,210.61,29.39]
[1733847937653,0.155,210.86,210.75,42.7263378]
[1733847937855,4.72403943,210.94,210.77,42.7263378]
[1733847937856,2.79990507,210.94,210.77,42.7263378]
[1733847938064,2.79990507,210.94,210.67,15.0]
[1733847938065,2.79990507,210.94,210.73,42.7263378]
[1733847938363,2.79990507,210.94,210.77,42.7263378]
[1733847938568,2.79990507,210.94,210.79,42.7263378]
[1733847938729,12.0279,210.99,210.81,42.7263378]
[1733847939355,2.81553439,210.96,210.81,42.7263378]
[1733847939663,2.81553439,210.96,210.79,42.7263378]
[1733847939961,2.81553439,210.96,210.8,0.71128278]
[1733847940158,2.81553439,210.96,210.77,42.7263378]
[1733847940333,2.81553439,210.96,210.75,42.7263378]
[1733847940537,2.81553439,210.96,210.79,42.7263378]
[1733847940738,13.88137044,210.99,210.85,42.7263378]
[1733847941041,12.0279,210.99,210.89,42.7263378]
[1733847941261,12.0279,210.99,210.83,42.7263378]
[1733847941564,12.0279,210.99,210.81,42.7263378]
[1733847941771,12.0279,210.99,210.83,42.7263378]
[1733847941935,12.0279,210.99,210.81,42.7263378]
[1733847942136,0.2244465,211.06,210.81,42.7263378]
[1733847942137,0.2244465,211.06,210.93,42.7263378]
[1733847942335,0.2244465,211.06,210.99,42.7263378]
[1733847942534,0.2244465,211.06,211.01,42.7263378]
[1733847942959,0.2244465,211.06,211.03,42.7263378]
[1733847943174,0.2244465,211.06,210.97,42.7263378]
[1733847943459,0.2244465,211.06,210.98,0.71064133]
[1733847943770,0.2244465,211.06,211.01,42.7263378]
[1733847943935,0.2244465,211.06,210.99,42.7263378]
[1733847944134,0.2244465,211.06,210.91,42.7263378]
[1733847944367,0.2244465,211.06,210.95,42.7263378]
[1733847944665,0.2244465,211.06,210.96,0.71068713]
[1733847944858,0.2244465,211.06,210.97,42.7263378]
[1733847945053,0.2244465,211.06,211.03,42.7263378]
[1733847945261,2.88654878,211.18,211.03,42.7263378]
[1733847945435,2.88654878,211.18,211.04,0.71047221]
[1733847945637,2.88654878,211.18,211.04,0.71045889]
[1733847945834,2.88654878,211.18,210.99,42.7263378]
[1733847946135,2.88654878,211.18,210.96,42.7263378]
[1733847946332,13.93622757,211.21,211.05,42.7263378]
[1733847946577,12.0279,211.21,211.05,42.7263378]
[1733847947335,27.0279,211.21,210.97,42.7263378]
[1733847947538,15.0,211.2,210.95,42.7263378]
[1733847947769,20.0,211.16,210.95,42.7263378]
[1733847947976,20.0,211.13,210.95,42.7263378]
[1733847948181,20.0,211.11,210.92,3.05594937]
[1733847948472,19.6472,211.1,210.9,3.05594937]
[1733847948652,15.0,211.09,210.88,3.05594937]
[1733847948967,26.94405063,211.09,210.88,3.05594937]
[1733847949171,15.0,211.08,210.87,3.05594937]
[1733847949348,15.0,211.08,210.84,45.78228717]
[1733847949545,15.0,211.03,210.8,3.05594937]
[1733847949745,15.0,211.01,210.8,3.05594937]
[1733847949946,4.76640523,211.08,210.75,0.71116445]
[1733847949947,26.94405063,211.0,210.77,3.05594937]
[1733847950141,20.0,210.95,210.72,3.05594937]
[1733847950368,20.0,210.95,210.7,42.7263378]
[1733847950369,20.0,210.92,210.7,3.05594937]
[1733847950572,20.0,210.87,210.67,3.05594937]
[1733847950758,20.0,210.85,210.66,3.05594937]
[1733847951163,0.42553383,210.84,210.71,3.05594937]
[1733847951474,0.42553383,210.84,210.69,3.05594937]
[1733847951647,0.42553383,210.84,210.64,45.78228717]
[1733847952069,20.0,210.8,210.6,42.7263378]
[1733847952277,7.6193,210.79,210.6,3.05594937]
[1733847952483,20.0,210.76,210.6,3.05594937]
[1733847952684,20.0,210.76,210.66,3.05594937]
[1733847952875,0.42553383,210.75,210.65,3.05594937]
[1733847953175,0.42553383,210.75,210.73,3.05594937]
[1733847953377,0.42553383,210.75,210.73,45.78228717]
[1733847954279,0.42553383,210.75,210.74,0.71149624]
[1733847954755,12.0279,210.92,210.85,3.05594937]
[1733847954955,12.0279,211.01,210.85,3.05594937]
[1733847955163,12.0279,211.01,210.87,3.05594937]
[1733847955880,12.0279,211.01,210.91,3.05594937]
[1733847956179,12.0279,211.01,210.69,3.05594937]
[1733847956180,11.94405063,210.91,210.69,3.05594937]
[1733847956355,12.0279,211.01,210.59,15.0]
[1733847956356,26.94405063,210.97,210.72,3.05594937]
[1733847956551,11.94405063,210.95,210.72,3.05594937]
[1733847956751,26.94405063,210.99,210.74,3.05594937]
[1733847956953,12.0279,211.01,210.77,3.05594937]
[1733847957174,20.0,210.98,210.79,3.05594937]
[1733847957386,2.8392158,210.92,210.76,3.05594937]
[1733847957770,2.8392158,210.92,210.74,45.78228717]
[1733847957951,2.8392158,210.92,210.77,3.05594937]
[1733847958155,2.8392158,210.92,210.74,42.7263378]
[1733847958379,2.8392158,210.92,210.73,3.05594937]
[1733847958585,20.0,210.87,210.73,0.86773189]
[1733847958878,20.0,210.87,210.73,3.05594937]
[1733847959083,22.8392158,210.92,210.7,45.78228717]
[1733847959381,20.0,210.9,210.75,3.05594937]
[1733847959788,20.0,210.91,210.68,45.78228717]
[1733847959959,20.0,210.88,210.68,3.05594937]
[1733847960162,20.0,210.87,210.66,3.05594937]
[1733847960485,20.0,210.83,210.74,3.05594937]
[1733847960658,20.0,210.83,210.72,3.05594937]
[1733847960862,20.0,210.83,210.7,3.05594937]
[1733847961584,20.0,210.83,210.65,0.71171895]
[1733847961894,20.0,210.74,210.57,3.05594937]
[1733847962057,20.0,210.73,210.57,3.05594937]
[1733847962453,20.0,210.73,210.54,3.05594937]
[1733847962677,20.0,210.69,210.52,3.05594937]
[1733847963060,32.7699,210.65,210.48,3.05594937]
[1733847963261,20.0,210.59,210.46,3.05594937]
[1733847963477,20.0,210.59,210.43,3.05594937]
[1733847963782,20.0,210.59,210.46,3.05594937]
[1733847964285,20.0,210.59,210.44,3.05594937]
[1733847964498,20.0,210.59,210.44,0.86892768]
[1733847964858,20.0,210.58,210.44,0.86892768]
[1733847965062,25.73509728,210.62,210.35,42.7263378]
[1733847965063,20.0,210.54,210.35,42.7263378]
[1733847965258,20.0,210.54,210.3,42.7263378]
[1733847965259,20.0,210.54,210.41,3.05594937]
[1733847965476,20.0,210.54,210.43,3.05594937]
[1733847965663,20.0,210.59,210.42,3.05594937]
[1733847965873,20.0,210.59,210.48,3.05594937]
[1733847966071,20.0,210.59,210.49,3.05594937]
[1733847966370,12.7699,210.65,210.53,3.05594937]
[1733847966582,12.7699,210.65,210.44,3.05594937]
[1733847966787,39.71395063,210.65,210.43,3.05594937]
[1733847966985,26.94405063,210.62,210.39,3.05594937]
[1733847967282,12.7699,210.65,210.37,42.7263378]
[1733847967283,7.8893,210.57,210.42,3.05594937]
[1733847967488,7.8893,210.57,210.4,3.05594937]
[1733847967786,20.0,210.54,210.37,3.05594937]
[1733847967971,20.0,210.54,210.36,0.86925814]
[1733847967972,20.0,210.48,210.36,0.86925814]
[1733847968177,20.0,210.48,210.29,3.05594937]
[1733847968178,12.7699,210.47,210.29,3.05594937]
[1733847968358,20.0,210.44,210.29,3.05594937]
[1733847968691,20.0,210.44,210.3,3.05594937]
[1733847969387,20.0,210.44,210.25,357.78228717]
[1733847969594,20.0,210.44,210.27,3.05594937]
[1733847969767,20.0,210.44,210.25,315.05594937]
[1733847969967,20.0,210.41,210.24,0.9443294]
[1733847970494,20.0,210.41,210.27,3.05594937]
[1733847970671,20.0,210.43,210.25,3.05594937]
[1733847970878,21.8583349,210.44,210.24,0.9443294]
[1733847970879,20.0,210.41,210.29,3.05594937]
[1733847971063,20.0,210.41,210.24,4.00027877]
[1733847971262,20.0,210.41,210.24,0.9443294]
[1733847971963,2.8918746,210.4,210.25,3.05594937]
[1733847972264,2.8918746,210.4,210.24,0.9443294]
[1733847972265,20.0,210.36,210.24,0.9443294]
[1733847972567,20.0,210.36,210.19,3.05594937]
[1733847972568,20.0,210.3,210.13,3.05594937]
[1733847972767,20.0,210.28,210.09,3.05594937]
[1733847972994,20.0,210.28,210.11,3.05594937]
[1733847973200,12.7699,210.33,210.17,42.7263378]
[1733847973371,12.7699,210.33,210.23,3.05594937]
[1733847973577,26.94405063,210.49,210.25,3.05594937]
[1733847973779,12.8571,210.45,210.27,3.05594937]
[1733847974001,15.67617815,210.45,210.35,3.05594937]
[1733847974211,15.67617815,210.45,210.38,3.05594937]
[1733847974212,12.8571,210.45,210.38,3.05594937]
[1733847974514,7.4705,210.49,210.4,3.05594937]
[1733847974672,12.8571,210.54,210.46,3.05594937]
[1733847974872,12.8571,210.54,210.39,3.05594937]
[1733847975072,12.8571,210.54,210.35,3.05594937]
[1733847975308,12.8571,210.54,210.36,3.05594937]
[1733847975509,12.8571,210.54,210.29,2.85455943]
[1733847975510,0.87134994,210.53,210.43,3.05594937]
[1733847976194,0.87134994,210.53,210.41,3.05594937]
[1733847976380,0.87134994,210.53,210.43,3.05594937]
[1733847976574,15.87134994,210.53,210.3,3.05594937]
[1733847976779,20.0,210.48,210.32,3.05594937]
[1733847977107,7.4705,210.45,210.27,42.69]
[1733847977277,20.0,210.41,210.27,42.69]
[1733847977474,0.87134994,210.4,210.28,3.05594937]
[1733847977675,0.87134994,210.4,210.27,42.69]
[1733847977905,0.87134994,210.4,210.29,3.05594937]
[1733847978113,0.87134994,210.4,210.32,3.05594937]
[1733847978324,0.87134994,210.4,210.34,3.05594937]
[1733847978478,0.87134994,210.4,210.36,3.05594937]
[1733847978902,0.87134994,210.4,210.33,0.71284233]
[1733847979106,0.87134994,210.4,210.27,42.69]
[1733847979107,0.87134994,210.4,210.27,45.74594937]
[1733847979407,0.87134994,210.4,210.29,3.05594937]
[1733847979605,12.8571,210.39,210.27,42.69]
[1733847979799,20.0,210.36,210.27,42.69]
[1733847980108,0.87134994,210.35,210.27,42.69]
[1733847981300,0.87134994,210.35,210.31,3.05594937]
[1733847981508,0.87134994,210.35,210.33,3.05594937]
[1733847981726,0.87134994,210.35,210.32,0.71303126]
[1733847981918,0.87134994,210.35,210.27,42.69]
[1733847982226,0.87134994,210.35,210.28,3.05594937]
[1733847982716,0.87134994,210.35,210.31,3.05594937]
[1733847982916,0.87134994,210.35,210.29,3.05594937]
[1733847983428,0.87134994,210.35,210.34,3.05594937]
[1733847984613,0.87134994,210.35,210.32,3.05594937]
[1733847984987,0.87134994,210.35,210.34,3.05594937]
[1733847985700,0.87134994,210.35,210.32,3.05594937]
[1733847986109,0.87134994,210.35,210.34,3.05594937]
[1733847990939,0.87134994,210.35,210.27,42.69]
[1733847991104,0.87134994,210.35,210.32,3.05594937]
[1733847991295,0.87134994,210.35,210.34,3.05594937]
[1733847991605,12.8571,210.47,210.38,3.05594937]
[1733847991941,54.6913796,210.63,210.32,42.7263378]
[1733847991942,11.94405063,210.68,210.44,3.05594937]
[1733847992110,12.8571,210.57,210.49,3.05594937]
[1733847992304,12.8571,210.57,210.52,3.05594937]
[1733847992500,2.85409712,210.63,210.44,3.05594937]
[1733847992809,2.85409712,210.63,210.32,15.0]
[1733847992810,15.0,210.61,210.42,3.05594937]
[1733847993011,15.0,210.61,210.37,42.7263378]
[1733847993012,0.87134994,210.6,210.4,3.05594937]
[1733847993327,0.87134994,210.6,210.31,3.63354751]
[1733847993328,0.87134994,210.6,210.47,3.05594937]
[1733847993636,20.5674,210.62,210.47,3.05594937]
[1733847993802,15.0,210.59,210.39,3.05594937]
[1733847994003,15.0,210.54,210.35,3.05594937]
[1733847994316,0.87134994,210.58,210.38,3.05594937]
[1733847994907,20.0,210.57,210.38,3.05594937]
[1733847995108,20.87134994,210.57,210.38,3.05594937]
[1733847995326,2.82537248,210.52,210.4,3.05594937]
[1733847995704,2.82537248,210.52,210.35,3.05594937]
[1733847996029,20.0,210.48,210.31,3.05594937]
[1733847996343,20.0,210.48,210.27,42.69]
[1733847996344,20.0,210.43,210.29,3.05594937]
[1733847996707,20.0,210.44,210.29,3.05594937]
[1733847996910,20.0,210.42,210.29,3.05594937]
[1733847997537,20.0,210.44,210.29,3.05594937]
[1733847997849,35.0,210.44,210.29,3.05594937]
[1733847998135,35.0,210.44,210.27,42.69]
[1733847998136,20.0,210.4,210.27,45.74594937]
[1733847999211,15.0,210.38,210.27,42.69]
[1733847999420,20.0,210.35,210.27,42.69]
[1733848000254,20.0,210.39,210.27,42.69]